Cogmind - Beta 12 @@@ ROGUE MODE // 2023.08.02 @ 18:37:12 Player: Grimalkyne Result: Destroyed by Y-54 Guardian with Flak Gun Performance ------------- Evolutions (3) 1500 Regions Visited (12) 2400 Robots Destroyed (100) 500 Value Destroyed (2664) 2664 Prototype IDs (40) 800 Alien Tech Used (0) 0 Bonus (1357) 1357 TOTAL SCORE: 9221 Bonus ------- High Alert Combat Kills 57 Entered Garrisons 200 Used RIF Installer 500 Aligned with FarCom 300 Met Data Miner 300 Cogmind --------- Core Integrity 0/700 Matter 292/300 Energy 29/100 System Corruption 12% Temperature Cool (-94) Movement Core (50) Location -6/Proximity Caves Parts ------- > --- POWER (1) -------- (None) > --- PROPULSION (3) --- (None) > --- UTILITY (6) ------ Cryofiber Web Coolant Injector Advanced Targeting Computer > --- WEAPON (3) ------- (None) > --- INVENTORY (5) ---- Improved Terrain Scanner Advanced Targeting Computer Makeshift Hacking Suite Dynamic Insulation System Latent Energy Streamer Peak State ------------ > --- POWER ------------ Light Nuclear Core > --- PROPULSION ------- Advanced Treads Medium Treads > --- UTILITY ---------- Cryofiber Web Improved Heat Sink Coolant Injector Medium Storage Unit Improved Signal Interpreter Advanced Targeting Computer > --- WEAPON ----------- Advanced Beam Rifle Latent Energy Streamer Cooled Particle Cannon > --- INVENTORY -------- Trap Scanner Improved Terrain Scanner Advanced Targeting Computer Makeshift Hacking Suite Dynamic Insulation System Shock Bomb Launcher [Rating: 48] Favorites ----------- Power Light Nuclear Core Engine Deuterium Engine Power Core Light Nuclear Core Propulsion Light Treads Treads Light Treads Leg Improved Carbon-fiber Leg Wheel Compact Wheel Utility Medium Storage Unit Device Improved Heat Sink Storage Medium Storage Unit Processor Advanced Targeting Computer Protection Hardened Medium Armor Plating Weapon Advanced Beam Rifle Energy Gun Advanced Beam Rifle Energy Cannon Cooled Particle Cannon Ballistic Gun Light Assault Rifle Ballistic Cannon Flak Cannon Launcher Shock Bomb Launcher Special Weapon Mining Laser Special Melee Weapon Improved Datajack Build | -11 -10 -10 -10 -9 -8 -8 -8 -7 -7 -7 -7 -6 ------- Run | Jun Mat Min Exi Min Mat Gar Mat Fac Low Low Dat Pro Slots Evolved 6 | . . . . . 4 . . 2 . . . . Power . | . . . . . . . . . . . . . Propulsion 1 | . . . . . 1 . . . . . . . Utility 4 | . . . . . 2 . . 2 . . . . Weapon 1 | . . . . . 1 . . . . . . . Parts Attached 123 | 6 9 . . 5 32 10 26 8 16 8 . 3 Power 13 | 1 2 . . 1 3 1 3 . 2 . . . Engine 8 | 1 2 . . 1 2 . 2 . . . . . Core 5 | . . . . . 1 1 1 . 2 . . . Reactor . | . . . . . . . . . . . . . Propulsion 28 | 2 1 . . 1 7 3 9 . 1 2 . 2 Treads 26 | 2 1 . . . 7 3 9 . 1 1 . 2 Leg 1 | . . . . . . . . . . 1 . . Wheel 1 | . . . . 1 . . . . . . . . Hover . | . . . . . . . . . . . . . Flight . | . . . . . . . . . . . . . Utility 31 | 1 3 . . . 8 2 6 4 4 3 . . Device 16 | . 1 . . . 4 2 1 3 2 3 . . Storage 3 | 1 1 . . . . . 1 . . . . . Processor 5 | . . . . . 2 . 1 1 1 . . . Hackware . | . . . . . . . . . . . . . Protection 7 | . 1 . . . 2 . 3 . 1 . . . Artifact . | . . . . . . . . . . . . . Weapon 51 | 2 3 . . 3 14 4 8 4 9 3 . 1 Energy Gun 15 | 1 3 . . 1 6 . 1 1 2 . . . Energy Cannon 6 | . . . . . . . 2 1 . 2 . 1 Ballistic Gun 12 | 1 . . . 2 6 2 1 . . . . . Ballistic Cannon 8 | . . . . . . . 3 2 3 . . . Launcher 7 | . . . . . 1 2 1 . 2 1 . . Special Weapon 1 | . . . . . 1 . . . . . . . Impact Weapon . | . . . . . . . . . . . . . Slashing Weapon . | . . . . . . . . . . . . . Piercing Weapon . | . . . . . . . . . . . . . Special Melee Weapon 2 | . . . . . . . . . 2 . . . Unidentified Prototypes 5 | . . . . . 2 . 1 2 . . . . Corrupted Parts 1 | . . . . . . . . . . 1 . . System Corruption 12 | . . . . . . . . . . 12 . . Parts Lost 23 | . 2 . . 1 2 . 1 . 8 5 . 4 Power 4 | . . . . 1 . . . . 2 1 . . Propulsion 7 | . . . . . 1 . 1 . 2 2 . 1 Utility 7 | . 1 . . . 1 . . . 2 1 . 2 Weapon 5 | . 1 . . . . . . . 2 1 . 1 Highest Loss Streak 6 | . 1 . . 1 2 . 1 . 6 2 . 3 To Critical Strikes . | . . . . . . . . . . . . . Average Slot Usage (%) 95 | . 96 100 100 100 99 100 99 99 97 81 84 68 Engine 6 | . 14 14 14 14 4 . 7 7 4 . . . Core 2 | . . . . . 4 9 1 . 2 2 . . Treads 23 | . 28 28 28 24 26 27 26 23 22 7 7 6 Device 10 | . 6 . . . 8 9 9 22 15 22 23 20 Storage 9 | . 14 14 14 14 9 9 9 7 7 7 7 5 Processor 8 | . . . . . 10 9 9 7 15 15 15 12 Protection 7 | . 4 14 14 14 7 9 9 7 6 . . . Energy Gun 14 | . 15 28 28 18 15 18 14 14 8 7 7 3 Energy Cannon 1 | . . . . . . . 2 . 4 8 7 5 Ballistic Gun 5 | . 12 . . 9 11 8 4 . . . . . Ballistic Cannon 2 | . . . . . . . 5 7 7 . . . Naked Turns . | . . . . . . . . . . . . . Heaviest Build 49 | 11 22 22 22 22 33 31 40 49 49 37 28 28 Greatest Support 69 | 40 40 40 40 40 60 60 69 66 66 50 18 42 Greatest Overweight (x) 3 | . . . . 1 . . . . . 1 1 3 Average Overweight (x) . | . . . . . . . . . . . 1 . Largest Inventory Capacity 10 | 8 10 10 10 10 10 10 10 10 10 10 10 10 Average Capacity 9 | 6 9 10 10 10 10 10 10 10 10 10 10 9 Most Carried 10 | 4 10 9 10 10 10 10 10 10 10 7 6 6 Average Carried 8 | 2 7 9 9 9 9 10 9 9 9 5 6 5 Final Capacity 10 | 8 10 10 10 10 10 10 10 10 10 10 10 5 Final Carried 10 | 4 9 9 10 10 10 10 10 10 7 6 6 5 Class Distribution -------------------- 30% | Scavenger-Skirmisher 24% | Mutant 20% | Skirmisher 16% | Scavenger-Mutant 5% | Gunner Dominant Class ---------------- Mutant | -10/Materials Scavenger-Mutant | -10/Mines Scavenger-Mutant | -10/Exiles Scavenger-Mutant | -9/Mines Scavenger-Skirmisher | -8/Materials Scavenger-Skirmisher | -8/Garrison Skirmisher | -8/Materials Skirmisher | -7/Factory Gunner | -7/Lower Caves Mutant | -7/Lower Caves Mutant | -7/Data Miner Mutant | -6/Proximity Caves Resources | -11 -10 -10 -10 -9 -8 -8 -8 -7 -7 -7 -7 -6 ----------- Run | Jun Mat Min Exi Min Mat Gar Mat Fac Low Low Dat Pro Matter Collected 2211 | 262 133 . . 65 451 238 451 96 340 126 . 49 Remotely . | . . . . . . . . . . . . . Salvage Created 3592 | 28 490 . . 140 999 637 672 108 297 221 . . Parts 215 | 5 26 . . 9 67 36 43 5 16 8 . . Haulers Intercepted 7 | . 1 . . . 3 . 3 . . . . . Recyclers Shooed 2 | . . . . 1 1 . . . . . . . Parts Field Recycled . | . . . . . . . . . . . . . Retrieved Matter . | . . . . . . . . . . . . . Parts Self-Destructed 18 | . . . . . . . . . 7 11 . . Prevented 7 | . . . . . . . . . 5 2 . . Kills | -11 -10 -10 -10 -9 -8 -8 -8 -7 -7 -7 -7 -6 ------- Run | Jun Mat Min Exi Min Mat Gar Mat Fac Low Low Dat Pro Combat Hostiles Destroyed 73 | . 8 . . 5 17 14 10 2 10 7 . . Guns 55 | . 7 . . 5 15 14 7 . 4 3 . . Cannons 12 | . . . . . . . 2 2 4 4 . . AOE 5 | . . . . . 2 . 1 . 2 . . . Classes Destroyed 14 | 1 5 . . 2 5 1 . . . . . . Worker 6 | . 1 . . . 2 . 3 . . . . . Builder 1 | . . . . . 1 . . . . . . . Tunneler 1 | 1 . . . . . . . . . . . . Hauler 7 | . 1 . . . 3 . 3 . . . . . Recycler 6 | . 1 . . 1 2 . 2 . . . . . Operator 2 | . . . . . 1 . 1 . . . . . Watcher 5 | . 1 . . . 3 . 1 . . . . . Swarmer 29 | . . . . 4 8 3 4 . 7 3 . . Grunt 24 | . 8 . . . 4 6 1 . 2 3 . . Brawler 2 | . . . . . . 1 . . . 1 . . Duelist 2 | . . . . . 1 . 1 . . . . . Sentry 13 | . . . . . 3 4 3 2 1 . . . Hunter 2 | . . . . . 1 . 1 . . . . . Assembled 1 | . . . . 1 . . . . . . . . Best Kill Streak 8 | 1 4 . . 5 8 3 5 1 3 3 . . Combat Bots Only 5 | . 4 . . 4 5 3 2 1 3 3 . . Max Kills in Single Turn 5 | 1 1 . . 1 5 2 2 1 2 2 . . Gunslinging 1 | . . . . . . 1 . . . . . . Exploded 2 | . . . . . 2 . 1 . 2 . . . Melee . | . . . . . . . . . . . . . Uniques/NPCs Destroyed . | . . . . . . . . . . . . . Combat | -11 -10 -10 -10 -9 -8 -8 -8 -7 -7 -7 -7 -6 -------- Run | Jun Mat Min Exi Min Mat Gar Mat Fac Low Low Dat Pro Damage Taken 5194 | . 658 . . 52 775 441 398 238 1170 464 . 998 Core 954 | . 78 . . . 129 34 12 12 84 62 . 543 Absorbed by Shields . | . . . . . . . . . . . . . Regen/Repaired (Parts) 54 | . . . . . . . 54 . . . . . Core Remaining (%) 78 | 100 . . . 68 . . 68 . . . . . Volleys Fired 234 | 2 51 . . 12 53 31 35 5 27 17 . 1 Largest 3 | 2 2 . . 2 3 3 3 3 3 3 . 2 Hottest 172 | 70 105 . . 105 150 155 168 172 164 127 . 66 Shots Fired 588 | 4 96 . . 24 151 91 103 15 71 31 . 2 Gun 500 | 4 96 . . 24 145 89 81 10 34 17 . . Cannon 73 | . . . . . . . 20 5 34 13 . 1 Launcher 14 | . . . . . 5 2 2 . 3 1 . 1 Special 1 | . . . . . 1 . . . . . . . Kinetic 243 | 2 45 . . 9 71 29 41 5 30 11 . . Thermal 317 | 2 51 . . 15 75 60 60 8 26 19 . 1 Explosive 9 | . . . . . 5 2 2 . . . . . Electromagnetic 19 | . . . . . . . . 2 15 1 . 1 Robot Hit Streak 32 | 2 10 . . 8 26 26 32 20 21 16 . . Robot Miss Streak 5 | 2 3 . . 1 2 4 5 . 4 2 . . Penetration Max 1 | . . . . . . 1 . . . . . . Secondary Targets 4 | . 1 . . . 1 2 . . . . . . Max Gunslinging Chain 1 | . 1 . . . 1 1 . . . . . . Shots Hit Robots 394 | 2 63 . . 17 106 62 67 15 40 22 . . Core Hits 176 | 1 24 . . 9 54 23 34 4 16 11 . . Critical Kills . | . . . . . . . . . . . . . Critical Parts Destroyed 2 | . 1 . . . 1 . . . . . . . Critical Strikes 18 | . 3 . . 1 4 1 3 3 3 . . . Burn 12 | . 2 . . 1 3 1 3 2 . . . . Destroy 2 | . 1 . . . 1 . . . . . . . Blast 3 | . . . . . . . . 1 2 . . . Corrupt 1 | . . . . . . . . . 1 . . . Melee Attacks 2 | . . . . . . . . . 2 . . . Impact . | . . . . . . . . . . . . . Slashing . | . . . . . . . . . . . . . Piercing . | . . . . . . . . . . . . . Sneak Attacks . | . . . . . . . . . . . . . Combat Hostiles . | . . . . . . . . . . . . . Follow-up Attacks . | . . . . . . . . . . . . . Damage Inflicted 6791 | 29 689 . . 204 1749 980 1337 325 931 547 . . Guns 4895 | 29 689 . . 204 1361 980 856 185 351 240 . . Cannons 1128 | . . . . . . . 257 140 424 307 . . Explosions 768 | . . . . . 388 . 224 . 156 . . . Melee . | . . . . . . . . . . . . . Ramming . | . . . . . . . . . . . . . Kinetic 2168 | 17 223 . . 45 407 320 368 140 397 251 . . Thermal 3715 | 12 466 . . 159 954 660 745 153 270 296 . . Explosive 612 | . . . . . 388 . 224 . . . . . Electromagnetic 296 | . . . . . . . . 32 264 . . . Impact . | . . . . . . . . . . . . . Slashing . | . . . . . . . . . . . . . Piercing . | . . . . . . . . . . . . . Highest Corruption 12 | . 2 2 2 2 . . . . . 12 12 12 Average Corruption 6 | . 2 2 2 2 . . . . . 12 12 12 Corruption Purged . | . . . . . . . . . . . . . Corruption Blocked . | . . . . . . . . . . . . . Effects 46 | . 2 1 5 5 . . . . . 14 2 17 Message Errors 10 | . . . 1 2 . . . . . 4 . 3 Matter Fused 9 | . . 1 1 . . . . . . 3 . 4 Heat Flow Errors 5 | . . . 1 . . . . . . 3 . 1 Energy Discharges 3 | . . . . 1 . . . . . 1 . 1 Parts Rejected 1 | . . . . . . . . . . . . 1 Data Loss (minor) 11 | . 1 . 1 1 . . . . . 3 1 4 Data Loss (major) 5 | . 1 . . 1 . . . . . . 1 2 Alerts 1 | . . . 1 . . . . . . . . . Misdirections 1 | . . . . . . . . . . . . 1 Overload Shots . | . . . . . . . . . . . . . Overflow Damage 104 | . . . . . 41 . 29 . . 34 . . Projectiles 3 | . . . . . . . . . . 3 . . Explosions 101 | . . . . . 41 . 29 . . 31 . . Melee . | . . . . . . . . . . . . . Knockbacks 5 | . . . . . . . 3 . . 2 . . Impact . | . . . . . . . . . . . . . Kinetic 4 | . . . . . . . 2 . . 2 . . Secondary 1 | . . . . . . . 1 . . . . . Self-Inflicted Damage 122 | . . . . . 2 40 . . 15 65 . . Shots 5 | . . . . . 1 1 . . 1 2 . . Rammed . | . . . . . . . . . . . . . Targets Rammed . | . . . . . . . . . . . . . Kicked . | . . . . . . . . . . . . . Crushed . | . . . . . . . . . . . . . Highest Temperature 352 | 30 352 . 268 241 240 208 217 210 288 130 . . Average Temperature 87 | 18 93 . 134 98 68 97 63 93 132 71 . . Received Heat Transfer 1449 | . 444 . . . 252 171 27 78 237 198 . 42 Siege Activations . | . . . . . . . . . . . . . Robots Corrupted . | . . . . . . . . . . . . . Combat Hostiles . | . . . . . . . . . . . . . Parts Fried . | . . . . . . . . . . . . . Impact Corruptions . | . . . . . . . . . . . . . Robots Melted 1 | . 1 . . . . . . . . . . . Combat Hostiles 1 | . 1 . . . . . . . . . . . Parts Melted 19 | . 2 . . 2 5 3 4 1 1 1 . . Heat Transferred 8382 | 37 1432 . . 445 2309 1162 1628 444 407 518 . . Parts Sabotaged . | . . . . . . . . . . . . . Parts Stolen . | . . . . . . . . . . . . . Parts Stripped . | . . . . . . . . . . . . . Power Chain Reactions 2 | . . . . . . . . . 1 1 . . Missiles Intercepted . | . . . . . . . . . . . . . Alert | -11 -10 -10 -10 -9 -8 -8 -8 -7 -7 -7 -7 -6 ------- Run | Jun Mat Min Exi Min Mat Gar Mat Fac Low Low Dat Pro Peak Influence 517 | 5 142 50 . 145 401 517 329 108 . . . . Initial 251 | . 3 50 . . . 204 251 58 . . . . Average 172 | 1 71 50 . 78 152 395 207 65 . . . . Maximum Alert Level 2 | . . . . . 2 2 1 . . . . . Low Security (%) 64 | 100 100 100 . 100 69 . 49 100 . . . . Level 1 25 | . . . . . 29 35 50 . . . . . Level 2 9 | . . . . . . 64 . . . . . . Level 3 . | . . . . . . . . . . . . . Level 4 . | . . . . . . . . . . . . . Level 5 . | . . . . . . . . . . . . . High Security . | . . . . . . . . . . . . . Max Security . | . . . . . . . . . . . . . Squads Dispatched 2 | . 1 . . . 1 . . . . . . . Investigation . | . . . . . . . . . . . . . Extermination . | . . . . . . . . . . . . . Reinforcement 2 | . 1 . . . 1 . . . . . . . Assault . | . . . . . . . . . . . . . Garrison . | . . . . . . . . . . . . . Intercept . | . . . . . . . . . . . . . Searches Triggered . | . . . . . . . . . . . . . Construction Impeded . | . . . . . . . . . . . . . Haulers Reinforced . | . . . . . . . . . . . . . Active Scanning Responses . | . . . . . . . . . . . . . Cargo Convoy Interrupts . | . . . . . . . . . . . . . Stealth | -11 -10 -10 -10 -9 -8 -8 -8 -7 -7 -7 -7 -6 --------- Run | Jun Mat Min Exi Min Mat Gar Mat Fac Low Low Dat Pro Distress Signals 9 | . 4 . . . 2 . 3 . . . . . Communications Jammed . | . . . . . . . . . . . . . Distress Signals . | . . . . . . . . . . . . . Times Spotted 114 | . 17 . . 7 26 14 23 2 11 7 . 7 Peak Tracking Total 8 | . 4 . . 4 8 3 4 1 4 4 . 4 Tactical Retreats 13 | . 1 . . 2 4 . 1 . 2 . . 3 Traps | -11 -10 -10 -10 -9 -8 -8 -8 -7 -7 -7 -7 -6 ------- Run | Jun Mat Min Exi Min Mat Gar Mat Fac Low Low Dat Pro Traps Triggered 1 | . 1 . . . . . . . . . . . Indirectly . | . . . . . . . . . . . . . Trap Hack Attempts . | . . . . . . . . . . . . . Triggered . | . . . . . . . . . . . . . Disarmed . | . . . . . . . . . . . . . Reprogrammed . | . . . . . . . . . . . . . Reused . | . . . . . . . . . . . . . Traps Extracted . | . . . . . . . . . . . . . Installed . | . . . . . . . . . . . . . Triggered 3 | . . . . . . . . . . 3 . . Machines | -11 -10 -10 -10 -9 -8 -8 -8 -7 -7 -7 -7 -6 ---------- Run | Jun Mat Min Exi Min Mat Gar Mat Fac Low Low Dat Pro Machines Disabled 4 | . 1 . . . 1 . 2 . . . . . Max in Single Turn 1 | . 1 . . . 1 . 1 . . . . . Machines Repaired . | . . . . . . . . . . . . . Machines Sabotaged . | . . . . . . . . . . . . . Overloaded Fab Kills . | . . . . . . . . . . . . . Hacking | -11 -10 -10 -10 -9 -8 -8 -8 -7 -7 -7 -7 -6 --------- Run | Jun Mat Min Exi Min Mat Gar Mat Fac Low Low Dat Pro Machines Accessed 19 | . 2 . 1 . 4 2 5 1 . . 4 . Terminals 12 | . 2 . . . 3 2 4 1 . . . . Fabricators . | . . . . . . . . . . . . . Repair Stations 1 | . . . . . . . 1 . . . . . Recycling Units . | . . . . . . . . . . . . . Scanalyzers . | . . . . . . . . . . . . . Garrison Access 1 | . . . . . 1 . . . . . . . Total Hacks 63 | . 6 . 1 . 7 2 15 2 . . 30 . Successful 45 | . 3 . 1 . 2 . 8 1 . . 30 . Failed 18 | . 3 . . . 5 2 7 1 . . . . Catastrophic 6 | . . . . . 2 2 1 1 . . . . Database Lockouts . | . . . . . . . . . . . . . Manual 7 | . . . 1 . 2 . 4 . . . . . Terminals 28 | . 6 . . . 5 2 13 2 . . . . Fabricators . | . . . . . . . . . . . . . Repair Stations 2 | . . . . . . . 2 . . . . . Recycling Units . | . . . . . . . . . . . . . Scanalyzers . | . . . . . . . . . . . . . Garrison Access 2 | . . . . . 2 . . . . . . . Terminal Hacks 42 | . 3 . 1 . 1 . 6 1 . . 30 . Record 14 | . . . . . . . 3 . . . 11 . Part Schematic 11 | . . . . . . . . . . . 11 . Robot Schematic 5 | . . . . . . . . . . . 5 . Robot Analysis 1 | . . . . . . . 1 . . . . . Prototype ID Bank 4 | . . . . . 1 . . . . . 3 . Alert Level 1 | . . . . . . . 1 . . . . . Unreport Threat 1 | . . . . . . . 1 . . . . . Locate Traps 2 | . 2 . . . . . . . . . . . Registered Components 1 | . 1 . . . . . . . . . . . Zone Layout 1 | . . . . . . . . 1 . . . . EX-Prototype ID Bank 1 | . . . 1 . . . . . . . . . Fabricator Hacks . | . . . . . . . . . . . . . Repair Station Hacks 2 | . . . . . . . 2 . . . . . Scan Component 1 | . . . . . . . 1 . . . . . Repair 1 | . . . . . . . 1 . . . . . Recycling Unit Hacks . | . . . . . . . . . . . . . Scanalyzer . | . . . . . . . . . . . . . Garrison Access Hacks 1 | . . . . . 1 . . . . . . . Unlock Access 1 | . . . . . 1 . . . . . . . Unauthorized Hacks . | . . . . . . . . . . . . . Terminals . | . . . . . . . . . . . . . Fabricators . | . . . . . . . . . . . . . Repair Stations . | . . . . . . . . . . . . . Recycling Units . | . . . . . . . . . . . . . Scanalyzers . | . . . . . . . . . . . . . Garrison Access . | . . . . . . . . . . . . . Data Cores Recovered 1 | . . . . . . . 1 . . . . . Used . | . . . . . . . . . . . . . Hacking Detections 12 | . 1 . . . 3 2 5 1 . . . . Full Trace Events . | . . . . . . . . . . . . . Feedback Events . | . . . . . . . . . . . . . Feedback Blocked . | . . . . . . . . . . . . . Robot Schematics Acquired 5 | . . . . . . . . . . . 5 . Robots Built . | . . . . . . . . . . . . . Authchips . | . . . . . . . . . . . . . Time . | . . . . . . . . . . . . . Total Robot Build Rating . | . . . . . . . . . . . . . Part Schematics Acquired 11 | . . . . . . . . . . . 11 . Parts Built . | . . . . . . . . . . . . . Authchips . | . . . . . . . . . . . . . Time . | . . . . . . . . . . . . . Total Part Build Rating . | . . . . . . . . . . . . . Parts Repaired 1 | . . . . . . . 1 . . . . . Time 38 | . . . . . . . 38 . . . . . Parts Recycled . | . . . . . . . . . . . . . Recycled Matter . | . . . . . . . . . . . . . Retrieved Matter . | . . . . . . . . . . . . . Retrieved Components . | . . . . . . . . . . . . . Parts Scanalyzed . | . . . . . . . . . . . . . Part Schematics Acquired . | . . . . . . . . . . . . . Parts Damaged . | . . . . . . . . . . . . . Bothacking | -11 -10 -10 -10 -9 -8 -8 -8 -7 -7 -7 -7 -6 ------------ Run | Jun Mat Min Exi Min Mat Gar Mat Fac Low Low Dat Pro Used RIF Installer 1 | . . . . . . 1 . . . . . . Robots Hacked 1 | . . . . . . . . . 1 . . . Non-combat . | . . . . . . . . . . . . . Combat 1 | . . . . . . . . . 1 . . . Robot Hacks Applied 1 | . . . . . . . . . 1 . . . parse_system 1 | . . . . . . . . . 1 . . . Relay Couplers Released . | . . . . . . . . . . . . . Fabnet Peak Effective % . | . . . . . . . . . . . . . Robots Rewired . | . . . . . . . . . . . . . Allies Hacked . | . . . . . . . . . . . . . Hacks Repelled . | . . . . . . . . . . . . . Allies | -11 -10 -10 -10 -9 -8 -8 -8 -7 -7 -7 -7 -6 -------- Run | Jun Mat Min Exi Min Mat Gar Mat Fac Low Low Dat Pro Total Allies 1 | . . . . . . . . . . . . 1 Largest Group 1 | . . . . . . . . . . . . 1 Highest-Rated Group 96 | . . . . . . . . . . . . 96 Highest-Rated Ally 96 | . . . . . . . . . . . . 96 Total Orders . | . . . . . . . . . . . . . Ally Attacks 14 | . . . . . . . . . . . . 14 Total Damage 523 | . . . . . . . . . . . . 523 Kills . | . . . . . . . . . . . . . Allies Corrupted . | . . . . . . . . . . . . . Allies Melted . | . . . . . . . . . . . . . Intel | -11 -10 -10 -10 -9 -8 -8 -8 -7 -7 -7 -7 -6 ------- Run | Jun Mat Min Exi Min Mat Gar Mat Fac Low Low Dat Pro Robot Analysis Total 1 | . . . . . . . 1 . . . . . Derelict Logs Recovered 4 | . . . . 2 . . . . 2 . . . Drone Launches . | . . . . . . . . . . . . . Drone Recoveries . | . . . . . . . . . . . . . Exploration | -11 -10 -10 -10 -9 -8 -8 -8 -7 -7 -7 -7 -6 ------------- Run | Jun Mat Min Exi Min Mat Gar Mat Fac Low Low Dat Pro Turns Passed 6742 | 91 714 56 329 439 1026 736 1265 470 580 514 152 370 Spaces Moved 3417 | 48 329 32 206 271 397 376 622 282 312 221 81 240 Core 84 | 3 . . . . . . . . . . . 81 Treads 2890 | 45 329 32 206 182 397 376 622 282 312 97 . 10 Legs 354 | . . . . . . . . . . 124 81 149 Wheels 89 | . . . . 89 . . . . . . . . Hover . | . . . . . . . . . . . . . Flight . | . . . . . . . . . . . . . Fastest Speed 50 | 50 160 160 160 115 160 160 145 145 145 145 190 50 Average Speed 155 | 153 160 160 160 145 160 160 149 145 145 188 190 143 Slowest Speed 225 | 160 160 160 160 160 160 160 160 145 145 225 190 200 Overloaded Moves . | . . . . . . . . . . . . . Propulsion Burnouts . | . . . . . . . . . . . . . Robots Hopped . | . . . . . . . . . . . . . Cave-ins Triggered . | . . . . . . . . . . . . . Exploration Rate (%) 37 | 4 52 8 60 51 36 39 47 9 50 32 69 33 Regions Visited 12 Branch Regions 7 Pre-discovered Areas 4 | . . . . 1 . . . . 2 . 1 . Known Exits Taken 5 | . . . . . 1 . . 1 1 1 1 . Unknown Exits Taken 6 | 1 1 1 1 1 . . 1 . . . . . Scrap Searched 9 | . . . . 2 . . . . 3 2 . 2 Spaces Dug 8 | . . . . . 1 7 . . . . . . Terrain Destroyed 94 | . . . . . 36 14 19 1 17 7 . . Melee . | . . . . . . . . . . . . . Projectile 13 | . . . . . 1 . 1 1 10 . . . AOE 81 | . . . . . 35 14 18 . 7 7 . . Terrain Rammed . | . . . . . . . . . . . . . Walls Destroyed . | . . . . . . . . . . . . . Machines Disabled . | . . . . . . . . . . . . . Actions | -11 -10 -10 -10 -9 -8 -8 -8 -7 -7 -7 -7 -6 --------- Run | Jun Mat Min Exi Min Mat Gar Mat Fac Low Low Dat Pro Total 4387 | 59 430 37 206 293 691 443 886 333 379 286 80 264 Wait 508 | . 31 6 . 4 171 21 179 29 16 37 . 14 Move 3405 | 47 328 31 205 270 396 375 621 281 311 220 80 240 Hop . | . . . . . . . . . . . . . Pick Up 36 | 4 6 . 1 . 11 . 3 4 4 3 . . Fast Attach 33 | 6 1 . . 2 9 . 6 3 2 2 . 2 Attach 21 | . 2 . . 1 5 . . 3 6 3 . 1 Detach 3 | . . . . . 2 . . . . . . 1 Swap 69 | . 6 . . 2 18 10 20 2 8 3 . . Drop 76 | . 5 . . 2 26 6 22 6 3 1 . 5 Fire 234 | 2 51 . . 12 53 31 35 5 27 17 . 1 Melee 2 | . . . . . . . . . 2 . . . Ram . | . . . . . . . . . . . . . Kick . | . . . . . . . . . . . . . Crush . | . . . . . . . . . . . . . Escape Stasis . | . . . . . . . . . . . . . Rewire . | . . . . . . . . . . . . . Trap . | . . . . . . . . . . . . . Miscellaneous . | . . . . . . . . . . . . . Route ------- -11/Junkyard -10/Materials (discovered 2 exits: [*Mat] / [*Min]) -10/Mines (discovered 2 exits: [*Mat] / *Exi) -10/Exiles -9/Mines -8/Materials -8/Garrison -8/Materials -7/Factory -7/Lower Caves -7/Lower Caves -7/Data Miner -6/Proximity Caves History --------- Turn | Location | Event 17 | -11/Junkyard | Discovered new exit (range 15) 92 | -11/Junkyard | Entered Materials 295 | -10/Materials | Discovered new exit (range 3) 303 | -10/Materials | Build established: Mutant 410 | -10/Materials | Discovered new exit (range 15) 806 | -10/Materials | Entered Mines 816 | -10/Mines | Discovered new exit (range 5) 856 | -10/Mines | Deemed a non-threat by the Exiles lab entrance 856 | -10/Mines | Discovered new exit (range 5) 862 | -10/Mines | Entered Exiles 901 | -10/Exiles | Met 8R-AWN 931 | -10/Exiles | Met EX-HEX 974 | -10/Exiles | Met EX-BIN 992 | -10/Exiles | Aligned with FarCom system 994 | -10/Exiles | Given EX-Vault access code 1027 | -10/Exiles | Build established: Scavenger-Mutant 1030 | -10/Exiles | Opened EX-Vault 1042 | -10/Exiles | Found Latent Energy Streamer 1076 | -10/Exiles | Warned to stay clear of 0b10 Research branches 1121 | -10/Exiles | Met EX-DEC 1177 | -10/Exiles | Discovered new exit (range 11) 1191 | -10/Exiles | Left Exiles lab with Latent Energy Streamer 1191 | -10/Exiles | Entered Mines 1323 | -9/Mines | Learned location of Storage (-7) 1443 | -9/Mines | Found a damaged Exp. Sensor Array with a note attached 1507 | -9/Mines | Assembled infested the area 1512 | -9/Mines | Assisted by a Guerilla fighting off Assembled 1599 | -9/Mines | Learned 2 Materials zone layouts 1620 | -9/Mines | Discovered new exit (range 9) 1630 | -9/Mines | Entered Materials 1630 | -8/Materials | Evolved 4 slots: Propulsion x1, Utility x2, Weapon x1 1919 | -8/Materials | Build established: Scavenger-Skirmisher 2654 | -8/Materials | Identified exit to Garrison 2656 | -8/Materials | Entered Garrison 2912 | -8/Garrison | Triggered checkpoint 3146 | -8/Garrison | Installed Relay Interface Framework 3262 | -8/Garrison | Triggered checkpoint 3374 | -8/Garrison | Discovered new exit (range 11) 3392 | -8/Garrison | Entered Materials 4237 | -8/Materials | Build established: Skirmisher 4344 | -8/Materials | Repaired Adv. Treads 4610 | -8/Materials | Discovered new exit (range 7) 4657 | -8/Materials | Entered Factory 4657 | -7/Factory | Evolved 2 slots: Utility x2 5094 | -7/Factory | Discovered new exit (range 4) 5126 | -7/Factory | Identified exit to Lower Caves 5127 | -7/Factory | Entered Lower Caves 5469 | -7/Lower Caves | Build established: Gunner 5631 | -7/Lower Caves | Attracted the attention of an 0b10 checkpoint 5668 | -7/Lower Caves | Learned location of Zion (-6) 5686 | -7/Lower Caves | Lost 6 parts (1p2n1u2w) 5690 | -7/Lower Caves | Discovered new exit (range 15) 5706 | -7/Lower Caves | Identified exit to Lower Caves 5707 | -7/Lower Caves | Entered another Lower Caves area 5862 | -7/Lower Caves | System corruption reached 10% 6197 | -7/Lower Caves | Discovered new exit (range 14) 6214 | -7/Lower Caves | Build established: Mutant 6219 | -7/Lower Caves | Identified exit to Data Miner 6221 | -7/Lower Caves | Entered Data Miner 6221 | -7/Data Miner | Discovered new exit (range 6) 6231 | -7/Data Miner | Identified exit to Proximity Caves 6258 | -7/Data Miner | Met Data Miner 6297 | -7/Data Miner | Acquired the access code to Warlord's prototype stash 6297 | -7/Data Miner | Learned location of Section 7 (-3) 6332 | -7/Data Miner | Received God Mode back door access code from Data Miner 6373 | -7/Data Miner | Entered Proximity Caves 6565 | -6/Proximity Caves | Spotted B-75 Beast 6638 | -6/Proximity Caves | Escorted by Enhanced Grunt 6676 | -6/Proximity Caves | Lost 3 parts (1n2u) 6683 | -6/Proximity Caves | Core integrity fell below 50% 6730 | -6/Proximity Caves | Core integrity fell below 20% 6737 | -6/Proximity Caves | Attracted the attention of an 0b10 checkpoint 6743 | -6/Proximity Caves | Destroyed by Y-54 Guardian with Flak Gun Last Messages --------------- 06645_ Imp. Heat Sink destroyed. 06656_ System corrupted: Imp. Carbon-fiber Leg rejected. 06661_ Dropped Shock Bomb Launcher. 06661_ Dropped Cld. Particle Cannon. 06670_ Dropped Med. Storage Unit. 06677_ System corrupted: Component data lost. 06699_ Searching scrap... 06699_ Found Adv. Treads. 06699_ Found Arm. Treads. 06699_ Found 27 Matter. 06700_ Acquired Arm. Treads. 06702_ S-27 Virus suffers critical hit (Destroy). 06702_ S-27 Virus destroyed. 06703_ Acquired Adv. Treads. 06707_ System corrupted: Component data lost. 06719_ Acquired 27 matter. 06724_ &%QTN574OFBZL44%4QX:LZ 06733_ Dropped Adv. Treads. 06733_ Dropped Arm. Treads. 06737_ Y-54 Guardian: "INTERCEPTING UNREGISTERED DERELICT." Map ----- +----------------------------------------------------+ | ?????????????????????????????????????????????????? | | ?????????????????????????????????????????????????? | | ?????????????????????????????????????????????????? | | ?????????????????????????????????????????????????? | | ?????????????????????????????????????????????????? | | ?????????????????????????????????????????????????? | | ?????????????????????????????????????????????????? | | ?????????????????????????????????????????????????? | | ?????????????????????????????????????????????????? | | ?????????????????????????????????????????????????? | | ?????????????????????????????????????????????????? | | ?????????????????????????????????????????????????? | | ?????????????????????????????????????????????????? | | ########?????????????????????????????????????????? | | # #####???????????######????????????????????? | | #??????###### #????????????????????? | | #????????# #????????????????????? | | ## #????????# #????????????????????? | | ## ##???????# ##???????????????????? | | = ######### $ Y ##??????????????????? | | = #??????????????????? | | # #??????????????????? | | ## ######### #??????????????????? | | ?# ###???????## #???????????????????? | | # #??????????### ##???????????????????? | | ## #????????????######@ ##????????????????????? | | ?######?????????????????# #?????????????????????? | | ????????????????????????# #?????????????????????? | | ????????????????????????# #?????????????????????? | | ???????????????????????? ?????????????????????? | | ???????????????????????? ?????????????????????? | | ???????????????????????? ##????????????????????? | | ???????????????????????? #?????????????????????? | | ???????????????????????? ?????????????????????? | | ???????????????????????? ?????????????????????? | | ??????????????????????? #?????????????????????? | | ??????????????????????? ##?????????????????????? | | ??????????????????????? ???????????????????????? | | ??????????????????????? ???????????????????????? | | ??????????????????????? ???????????????????????? | | ??????????????????????? ???????????????????????? | | ?????????????????????????????????????????????????? | | ?????????????????????????????????????????????????? | | ?????????????????????????????????????????????????? | | ?????????????????????????????????????????????????? | | ?????????????????????????????????????????????????? | | ?????????????????????????????????????????????????? | | ?????????????????????????????????????????????????? | | ?????????????????????????????????????????????????? | | ?????????????????????????????????????????????????? | +----------------------------------------------------+ Best States ------------- Heat Dissipation 62 Coolant Potential 65 Energy Generation 14 Energy Capacity 275 Matter Stores 300 Matter Capacity 300 Sight Range 18 Terrain Scan Range 16 Terrain Scan Density 10 Base Temperature (-) 100 Armor Coverage 225 Evasion (%) 50 Targeting Accuracy 8 Recoil Reduction 3 Item Schematics ----------------- Combat Drone Bay | -7/Data Miner | Free Lgt. Regenerative Plating | -7/Data Miner | Free Cld. Cesium-ion Thruster | -7/Data Miner | Free Gravity Neutralizer | -7/Data Miner | Free Cld. Plasma Cannon | -7/Data Miner | Free Gyrokinetic Inverter | -7/Data Miner | Free Imp. Focal Shield | -7/Data Miner | Free Lrn. Proton Cannon | -7/Data Miner | Free Imp. Hardlight Generator | -7/Data Miner | Free Imp. Transmission Jammer | -7/Data Miner | Free Dispersion Rifle | -7/Data Miner | Free Robot Schematics ------------------ S-27 Virus | -7/Data Miner | Free B-48 Gladiator | -7/Data Miner | Free E-15 Imp | -7/Data Miner | Free A-15 Conveyor | -7/Data Miner | Free Y-64 Sentinel | -7/Data Miner | Free Fabricated ------------ Nothing Alien Tech Used ----------------- None Achievements -------------- None Challenges ------------ None Game ------ Seed MappingDisruptorCompactor Manual? 0 Play Time 01:09:27 Cumulative 56.8 hours Start 2023.08.02 @ 13:25:27 End 2023.08.02 @ 18:37:12 Sessions 3 Manual Loads 0 Difficulty Rogue Special Mode None Game No. 45 Rogue 44 Adventurer 1 Explorer 0 Win Type - Total 1 Types 1/0/0/0/0/0/0/0/0 Lore% 24 Gallery% 41 Achievement% 28 Wizard Run 0 Options --------- ASCII 0 Keyboard 0 Movement Mouse Keybinds 0 Fullscreen 2 Font 16/SmallcapsGlow Map View 76x50 Tactical HUD 1 Map Filters NONE Filters NONE Steam 1 RUN: 0a4d579f-fbd4-4fef-9e4e-1f3bf158f1bc